bitfinex/quotes_ETHUSD_20250804
["timestamp","ask_amount","ask_price","bid_price","bid_amount"]
[1754268897346,0.1408,3552.0,3551.9,3.72539457]
[1754268897661,0.1408,3552.0,3551.9,0.91]
[1754268897860,0.1408,3552.0,3551.9,3.72539457]
[1754268898363,3.0,3553.3,3552.0,2.81529229]
[1754268898364,0.4547,3553.2,3552.0,2.81529229]
[1754268898556,0.1408,3552.2,3552.0,2.81529229]
[1754268898752,0.1408,3552.2,3552.1,3.72323605]
[1754268898957,0.1408,3552.2,3552.1,3.75683605]
[1754268899652,0.1408,3552.2,3552.1,0.9416]
[1754268900026,0.1408,3552.2,3551.9,0.002]
[1754268900223,0.3999,3552.9,3552.0,0.9278]
[1754268900467,0.34009,3552.9,3552.1,0.4837]
[1754268900673,0.1408,3552.4,3552.1,0.9278]
[1754268900969,0.1408,3552.4,3552.3,2.81507755]
[1754268901125,0.1418,3553.1,3552.7,2.81471692]
[1754268901330,0.1418,3553.1,3552.3,1.0686]
[1754268901331,0.1418,3553.1,3552.8,2.81467582]
[1754268901550,0.1418,3553.1,3552.9,0.9278]
[1754268901866,0.1418,3553.1,3552.9,3.74238345]
[1754268902074,0.1418,3553.1,3553.0,3.74232293]
[1754268902374,0.1418,3553.1,3553.0,0.9278]
[1754268902573,0.1418,3553.1,3553.0,3.74232293]
[1754268902733,0.1418,3553.1,3553.0,0.9278]
[1754268902934,0.1418,3553.1,3552.7,4.04350449]
[1754268903280,0.1418,3553.1,3552.3,0.9278]
[1754268903281,0.1408,3552.8,3552.3,0.9278]
[1754268903442,0.1408,3552.8,3552.0,3.29900232]
[1754268903443,0.4803,3552.8,3552.0,3.29900232]
[1754268903763,0.1408,3552.2,3552.0,0.4837]
[1754268904078,0.1408,3552.2,3552.1,0.9278]
[1754268904581,0.1408,3552.2,3551.9,2.81738129]
[1754268904759,0.4803,3552.8,3551.9,0.002]
[1754268904760,0.8802,3552.8,3551.9,0.002]
[1754268904962,0.1408,3552.0,3551.9,3.30109457]
[1754268905266,0.1408,3552.0,3551.9,3.74519457]
[1754268906466,0.1408,3552.0,3551.9,4.85348323]
[1754268906682,0.1408,3552.2,3552.0,2.81525815]
[1754268906850,0.1408,3552.2,3552.0,0.9278]
[1754268907251,0.1408,3552.2,3552.1,3.74303605]
[1754268907450,0.001,3553.1,3552.1,3.74303605]
[1754268907451,0.1408,3552.6,3552.1,1.0686]
[1754268907648,0.1408,3552.6,3552.4,2.81494589]
[1754268907858,0.1408,3552.6,3552.5,3.74271907]
[1754268908176,0.1408,3552.6,3552.5,4.42663476]
[1754268908478,0.001,3553.1,3552.8,2.81462335]
[1754268908847,0.001,3553.1,3552.9,0.9278]
[1754268909248,0.1408,3553.0,3552.9,2.81460215]
[1754268909944,0.1418,3553.1,3553.0,2.81452293]
[1754268910149,0.1418,3553.1,3552.9,3.25868357]
[1754268910338,0.1418,3553.1,3553.0,3.29822293]
[1754268910541,0.1418,3553.1,3552.9,2.81457754]
[1754268910751,0.1418,3553.1,3552.8,2.81465351]
[1754268911139,0.1418,3553.1,3552.9,2.81458816]
[1754268911465,0.1418,3553.1,3552.9,3.29828816]
[1754268911667,0.1418,3553.1,3552.9,3.74238816]
[1754268911851,0.1418,3553.1,3552.9,0.4837]
[1754268912048,0.1418,3553.1,3552.6,4.6338]
[1754268912265,0.1418,3553.1,3553.0,2.81452293]
[1754268912750,0.1418,3553.1,3553.0,0.9278]
[1754268912947,0.1418,3553.1,3553.0,3.74232293]
[1754268914071,0.1418,3553.1,3553.0,0.4837]
[1754268914265,0.1418,3553.1,3552.8,2.81465904]
[1754268914466,0.1418,3553.1,3553.0,2.81452293]
[1754268914982,0.1418,3553.1,3553.0,3.74232293]
[1754268915559,0.1418,3553.1,3553.0,9.58820653]
[1754268915560,0.001,3553.1,3553.0,9.58820653]
[1754268915756,0.001,3553.1,3553.0,9.56006131]
[1754268915960,0.0065,3554.2,3553.0,9.56006131]
[1754268916163,0.0065,3554.2,3554.0,2.813731]
[1754268916164,0.1408,3554.1,3554.0,2.813731]
[1754268916365,0.1408,3554.1,3553.8,4.491]
[1754268916563,0.1408,3554.1,3553.9,0.4837]
[1754268916895,0.1408,3554.1,3554.0,0.9278]
[1754268917195,0.1408,3554.1,3554.0,4.283411]
[1754268918047,0.1408,3554.1,3554.0,0.9278]
[1754268918280,0.1408,3554.1,3553.9,7.30378217]
[1754268918476,0.1408,3554.1,3554.0,2.813731]
[1754268918859,0.1408,3554.1,3554.0,3.741531]
[1754268919793,0.0065,3554.2,3554.0,3.741531]
[1754268919794,0.0065,3554.2,3554.1,2.81365183]
[1754268919997,0.1473,3554.2,3554.1,2.81365183]
[1754268920199,0.1473,3554.2,3554.1,3.74145183]
[1754268920547,0.1473,3554.2,3554.0,2.81371673]
[1754268920811,0.1473,3554.2,3553.8,0.4837]
[1754268920956,0.4803,3554.1,3553.7,4.49]
[1754268921157,0.1473,3554.2,3553.4,3.25823859]
[1754268921158,0.4803,3554.0,3553.4,0.4843]
[1754268921363,0.4803,3554.0,3553.3,2.81425051]
[1754268921364,0.1408,3553.5,3553.3,7.30325051]
[1754268921564,0.1408,3553.5,3553.3,2.81425051]
[1754268921863,0.8802,3553.4,3553.3,2.81425051]
[1754268922202,0.4803,3553.4,3553.3,2.81425051]
[1754268923101,0.1408,3553.5,3553.3,2.81425051]
[1754268923281,0.0065,3554.2,3553.4,1.49066905]
[1754268923584,0.1408,3553.8,3553.7,2.81396853]
[1754268923793,0.1408,3553.8,3553.7,3.74176853]
[1754268924287,0.1408,3553.8,3553.6,2.81403677]
[1754268924670,0.1408,3553.8,3553.5,4.488]
[1754268924873,0.1408,3553.6,3553.3,4.488]
[1754268925187,0.1408,3553.5,3553.4,3.74197711]
[1754268925391,0.1408,3554.0,3553.7,2.81396853]
[1754268925573,0.1473,3554.2,3553.8,8.22968748]
[1754268925775,0.1473,3554.2,3554.0,2.81369378]
[1754268926089,0.4803,3554.1,3553.3,4.12380354]
[1754268926314,0.4803,3554.1,3553.0,0.1408]
[1754268926315,0.1408,3553.5,3553.0,0.1408]
[1754268926456,3.55,3553.3,3552.1,0.002]
[1754268926777,0.55,3553.3,3552.1,0.002]
[1754268927147,0.55,3553.1,3552.1,0.002]
[1754268927589,0.8802,3553.0,3552.1,0.002]
[1754268927793,0.4803,3553.0,3552.1,0.002]
[1754268929082,0.3999,3552.9,3552.1,0.002]
[1754268929453,0.4611,3552.8,3552.1,0.002]
[1754268930067,0.4611,3553.2,3552.1,0.002]
[1754268930269,0.6022,3553.2,3552.2,0.4615]
[1754268930466,0.6022,3553.2,3552.3,0.02815077]
[1754268930693,0.005,3554.5,3552.3,0.02815077]
[1754268930694,0.861,3553.6,3552.5,2.81491907]
[1754268930996,0.861,3553.6,3552.6,0.48964839]
[1754268931301,7.2251,3553.9,3552.8,2.81465911]
[1754268931596,7.2251,3553.9,3552.9,0.48964602]
[1754268931796,7.2251,3553.9,3553.0,2.81452293]
[1754268931797,1.2113,3553.8,3553.0,2.81452293]
[1754268932171,1.2113,3553.8,3553.1,2.81444112]
[1754268932370,1.2113,3553.8,3553.2,2.81433182]
[1754268932574,1.2113,3553.8,3553.2,2.81436451]
[1754268932780,1.2113,3553.8,3553.3,2.8142726]
[1754268933206,1.2113,3553.8,3553.3,0.9305]
[1754268933704,1.2113,3553.8,3553.3,2.81428409]
[1754268933866,1.2113,3553.8,3553.4,0.9305]
[1754268935098,4.9546,3554.2,3553.5,0.95864126]
[1754268935099,0.0065,3554.2,3553.5,0.95864126]
[1754268935298,0.0065,3554.2,3553.5,0.9305]
[1754268935602,0.0065,3554.2,3553.5,3.74462293]
[1754268936176,0.0065,3554.2,3553.5,0.9305]
[1754268936362,0.1408,3553.6,3553.5,3.74460477]
[1754268939311,0.0065,3554.2,3553.7,2.81394856]
[1754268939511,0.1408,3553.8,3553.7,2.81394856]
[1754268939727,0.1408,3553.8,3553.7,3.74444856]
[1754268940307,0.0065,3554.2,3553.9,2.81379844]
[1754268940503,0.1408,3554.0,3553.9,2.81379844]
[1754268940930,0.1408,3554.0,3553.9,4.30707314]
[1754268941234,0.0065,3554.2,3554.1,5.81365183]
[1754268941394,0.0065,3554.2,3554.1,10.29965183]
[1754268941594,0.0065,3554.2,3554.1,11.23015183]
[1754268941826,0.0065,3554.2,3554.1,12.69082433]
[1754268943833,1e-08,3554.5,3554.4,2.81341435]
[1754268944135,1e-08,3554.5,3554.4,3.74391435]
[1754268944297,1e-08,3554.5,3554.4,8.22891435]
[1754268944638,1e-08,3554.5,3554.4,9.76058919]
[1754268945300,1.0209165,3555.6,3554.9,2.81301865]
[1754268945501,1.0209165,3555.6,3554.9,7.29801865]
[1754268945840,1.0209165,3555.6,3554.9,8.22851865]
[1754268946051,1.0209165,3555.6,3554.9,9.33268196]
[1754268948117,1.0209165,3555.6,3554.9,9.33168196]
[1754268948741,1.0209165,3555.6,3554.9,4.84768196]
[1754268949044,1.0209165,3555.6,3554.9,4.69655787]
[1754268949247,0.4611,3555.5,3554.9,4.69655787]
[1754268949454,1.4208165,3555.6,3554.9,4.484]
[1754268949626,0.4611,3555.3,3554.9,4.484]
[1754268950330,1.0209165,3555.6,3554.9,4.484]
[1754268950531,1.4820165,3555.6,3554.9,7.29701865]
[1754268950827,1.4820165,3555.6,3554.4,1.53167484]
[1754268951031,1.4820165,3555.6,3554.3,0.4615]
[1754268951032,0.4611,3555.2,3554.6,7.29724272]
[1754268951226,0.1408,3555.1,3554.8,2.81304392]
[1754268951447,0.1408,3555.1,3554.7,2.81317692]
[1754268951749,0.1408,3555.1,3554.9,2.81301865]
[1754268952251,0.1408,3555.1,3554.8,2.81307532]
[1754268952416,0.1408,3555.1,3554.9,2.81301865]
[1754268952956,0.1408,3555.1,3554.8,2.81306933]
[1754268953265,0.3999,3555.4,3554.6,4.483]
[1754268953550,0.861,3554.9,3553.9,0.6755197]
[1754268953738,0.861,3554.9,3554.4,2.81337647]
[1754268953739,0.1408,3554.6,3554.4,2.81337647]
[1754268953936,0.1408,3554.6,3554.1,4.483]
[1754268953937,0.1408,3554.6,3554.3,2.8134738]
[1754268954560,0.1408,3554.6,3554.5,2.8133352]
[1754268954722,0.861,3555.5,3554.8,2.81309699]
[1754268954918,0.1408,3554.9,3554.6,2.81318875]
[1754268955113,0.1408,3554.9,3554.4,8.36670727]
[1754268955343,0.1408,3554.9,3554.8,2.81309778]
[1754268955657,0.1408,3554.9,3554.6,2.84138862]
[1754268955956,0.1408,3554.9,3554.8,2.81309778]
[1754268956152,0.1408,3554.9,3554.8,2.84122875]
[1754268956332,1.0209165,3555.6,3554.9,2.81301865]
[1754268956533,0.1408,3555.3,3554.9,2.81301865]
[1754268957195,1.0209165,3555.6,3554.4,5.4125]
[1754268957196,0.4651,3555.0,3554.6,2.81320356]
[1754268957450,0.1408,3554.5,3554.3,2.81349351]
[1754268957642,0.1408,3554.5,3554.4,2.81341435]
[1754268959655,0.1408,3554.5,3554.1,2.81365183]
[1754268959860,0.1408,3554.5,3554.0,4.6228]
[1754268960219,0.1408,3554.5,3554.0,0.1408]
[1754268960420,0.1408,3554.1,3553.5,0.1408]
[1754268960735,0.1408,3553.2,3552.8,0.4645]
[1754268960939,3.0,3554.8,3553.5,2.81409822]
[1754268960940,0.4645,3554.3,3553.5,2.81409822]
[1754268961267,4.481,3554.8,3554.2,2.81356775]
[1754268961268,0.4645,3554.7,3554.2,2.81356775]
[1754268961474,0.4645,3554.7,3553.6,3.76706264]
[1754268961475,0.1408,3554.3,3553.8,0.1408]
[1754268961635,0.1408,3554.3,3553.5,4.481]
[1754268961636,0.1408,3554.0,3553.7,2.81394809]
[1754268961972,0.1408,3554.0,3553.8,2.81388468]
[1754268962134,0.1408,3554.0,3553.6,2.81404505]
[1754268962135,0.1408,3554.0,3553.9,2.81381018]
[1754268962333,0.1408,3554.0,3553.6,0.9249]
[1754268962334,0.1408,3554.0,3553.8,2.8138719]
[1754268963463,0.1408,3554.0,3553.5,0.5835]
[1754268963665,0.4645,3554.3,3553.6,2.81404713]
[1754268963857,0.1408,3553.8,3553.6,2.81404713]
[1754268964164,0.1408,3553.8,3553.7,2.81396853]
[1754268965869,0.1408,3553.8,3553.7,3.29616853]
[1754268966037,0.1408,3554.3,3554.1,2.81360311]
[1754268966231,0.1408,3554.3,3553.7,1.72099942]
[1754268966232,0.1408,3554.3,3553.7,0.79609942]
[1754268966663,0.1408,3554.3,3553.7,2.954758]
[1754268966861,0.1408,3554.3,3553.9,2.81373858]
[1754268967079,0.1408,3554.3,3553.7,2.954758]
[1754268967080,0.1408,3554.3,3553.7,0.1408]
[1754268967244,0.1408,3554.3,3553.8,0.623]
[1754268967431,0.1408,3554.3,3554.0,2.813731]
[1754268967634,0.1408,3554.3,3553.9,2.81378867]
[1754268969259,6.766,3555.0,3553.3,4.483]
[1754268969260,0.4645,3554.2,3553.6,2.81403373]
[1754268969459,0.1408,3553.9,3553.3,4.9652]
[1754268969671,0.4645,3554.4,3553.3,4.9652]
[1754268969965,0.1408,3553.7,3553.6,2.81404772]
[1754268970170,0.1408,3554.1,3553.7,2.81396685]
[1754268970367,0.1408,3554.1,3553.6,3.87972857]
[1754268970574,0.4645,3554.1,3553.6,2.81404227]
[1754268970772,0.1408,3553.8,3553.6,2.81404227]
[1754268971260,0.1408,3553.8,3553.5,7.29511499]
[1754268971455,0.1408,3553.8,3553.5,4.481]
[1754268971765,0.1408,3553.8,3553.5,4.9237]
[1754268971970,0.1408,3553.8,3553.6,3.29621567]
[1754268972371,0.1408,3553.8,3553.7,0.4427]
[1754268972552,0.1408,3553.8,3553.7,3.73886853]
[1754268973073,0.1408,3553.8,3553.7,0.9249]
[1754268973278,0.1408,3553.8,3553.7,3.29616853]
[1754268974441,0.1408,3553.8,3553.7,3.73886853]
[1754268974776,7.2305,3555.0,3553.7,2.0282985]
[1754268974977,7.2305,3555.0,3553.8,5.4049]
[1754268975143,8.27704,3555.0,3554.4,2.81337859]
[1754268975343,0.1408,3554.5,3554.4,2.81337859]
[1754268975778,0.1408,3554.5,3554.4,3.29557859]
[1754268975986,6.766,3555.0,3554.6,2.81324607]
[1754268975987,0.005,3555.0,3554.6,2.81324607]
[1754268976209,0.005,3555.0,3554.9,2.81301865]
[1754268976554,0.005,3555.0,3554.9,3.73791865]
[1754268977091,0.005,3555.0,3554.9,3.76604883]
[1754268977670,0.005,3555.0,3554.9,3.73791865]
[1754268978855,0.005,3555.0,3554.9,3.76604883]
[1754268979056,0.005,3555.0,3554.9,5.03610075]
[1754268980001,0.005,3555.0,3554.9,12.72551024]
[1754268981403,0.005,3555.0,3554.9,11.42732814]
[1754268982873,0.005,3555.0,3554.9,7.29101865]
[1754268983197,0.005,3555.0,3554.9,8.21591865]
[1754268986170,0.005,3555.0,3554.9,8.42641791]
[1754268986379,0.005,3555.0,3554.9,8.56721791]
[1754268986601,0.005,3555.0,3554.9,9.74263692]
[1754268986803,0.005,3555.0,3554.9,9.74163692]
[1754268991630,0.005,3555.0,3554.9,4.33973692]
[1754268991811,0.005,3555.0,3554.9,8.81573692]
[1754268992295,0.005,3555.0,3554.9,9.27433692]
[1754268992483,0.005,3555.0,3554.9,9.71803692]
[1754268994217,0.004,3556.4,3555.1,3.0]
[1754268994511,0.004,3556.4,3556.0,2.81210126]
[1754268994759,0.004,3556.4,3555.9,4.475]
[1754268994915,0.004,3556.4,3556.0,2.81213728]
[1754268995088,0.004,3556.4,3556.3,2.81191125]
[1754268996303,0.004,3556.4,3556.0,4.474]
[1754268996621,0.004,3556.4,3556.2,2.81193354]
[1754268997121,0.004,3556.4,3556.0,5.42586]
[1754268997315,0.004,3556.4,3556.0,4.96726]
[1754268997619,0.004,3556.4,3556.0,7.77940409]
[1754268998317,0.004,3556.4,3556.0,4.96726]
[1754268998724,0.454,3556.4,3556.0,4.96726]
[1754268999091,0.004,3556.4,3556.0,7.77935025]
[1754268999422,0.004,3556.4,3556.1,2.8120694]
[1754268999785,0.004,3556.4,3556.0,5.42586]
[1754269000020,0.004,3556.4,3556.0,5.86956]
[1754269000909,0.004,3556.4,3556.1,2.81204488]
[1754269001222,0.004,3556.4,3556.0,8.68169253]
[1754269001421,0.004,3556.4,3556.2,2.81191763]
[1754269001923,0.004,3556.4,3556.3,2.81191125]
[1754269002122,0.004,3556.4,3556.3,7.72861125]
[1754269002286,0.004,3556.4,3556.3,8.18721125]
[1754269004401,0.004,3556.4,3556.3,8.32801125]
[1754269004605,0.005,3556.4,3556.3,9.6062842]
[1754269005295,0.005,3556.4,3556.3,2.95271125]
[1754269005511,0.005,3556.4,3556.3,3.71421125]
[1754269005713,0.005,3556.4,3556.3,8.32701125]
[1754269005904,0.005,3556.4,3556.0,4.472]
[1754269006105,0.005,3556.4,3556.1,2.8120694]
[1754269006425,0.005,3556.4,3555.7,0.9023]
[1754269006426,0.455,3556.4,3555.7,0.9023]
[1754269006625,0.1408,3556.1,3555.8,7.28329702]
[1754269006825,0.1408,3556.1,3555.8,4.471]
[1754269007030,0.1408,3556.1,3555.9,3.0]
[1754269007206,0.1408,3556.1,3556.0,7.471]
[1754269007402,0.1408,3556.1,3556.0,3.0]
[1754269007703,0.9907,3556.1,3554.9,0.21049926]
[1754269008024,0.9907,3556.1,3555.4,2.8125627]
[1754269008025,0.1408,3555.8,3555.4,2.8125627]
[1754269008320,0.5908,3555.8,3555.5,3.0]
[1754269008722,0.5908,3555.8,3555.5,2.81247146]
[1754269008723,0.1408,3555.8,3555.5,2.81247146]
[1754269008927,0.1408,3555.8,3555.7,2.81238574]
[1754269009117,0.1408,3556.0,3555.7,2.81238574]
[1754269009998,0.5908,3556.0,3555.6,2.81244665]
[1754269010193,0.45,3555.9,3555.6,2.81244665]
[1754269010420,0.45,3555.9,3555.5,4.6118]
[1754269010421,0.45,3555.9,3555.5,7.28353037]
[1754269011230,0.45,3555.9,3555.6,2.8124372]
[1754269011403,0.45,3555.9,3555.5,7.28351724]
[1754269012007,0.45,3555.8,3555.4,4.471]
[1754269012208,0.1408,3555.6,3555.1,1.0431]
[1754269012410,0.1408,3555.6,3555.5,2.81254394]
[1754269012927,0.1408,3555.6,3555.3,7.2836771]
[1754269013332,0.1408,3555.6,3555.3,4.471]
[1754269013535,0.1408,3555.6,3555.4,2.81262305]
[1754269013738,0.1408,3555.6,3554.9,4.04928179]
[1754269013739,0.45,3555.5,3554.8,0.002]
[1754269013936,0.8499,3555.5,3554.8,0.002]
[1754269014413,0.555,3556.4,3554.8,0.002]
[1754269014414,0.8499,3555.4,3554.8,0.002]
[1754269014818,0.555,3556.4,3554.8,0.002]
[1754269014819,0.8499,3555.3,3554.8,0.002]
[1754269015223,0.8499,3555.2,3554.8,0.002]
[1754269015724,0.8499,3555.1,3554.8,0.002]
[1754269016121,5.02,3555.9,3554.8,0.002]
[1754269016122,0.8499,3555.0,3554.8,0.002]
[1754269016518,5.02,3555.9,3554.8,0.002]
[1754269016519,0.8499,3554.9,3554.8,0.002]
[1754269017447,1.3999,3554.9,3554.8,0.002]
[1754269018341,8.8699,3554.9,3554.8,0.002]
[1754269018510,9.75689,3554.9,3554.8,0.002]
[1754269021026,9.20789,3554.9,3554.8,0.002]
[1754269021969,39.75789,3554.9,3554.8,0.002]
[1754269022608,42.57090865,3554.9,3554.8,0.002]
[1754269022813,61.14243749,3554.9,3554.8,0.002]
[1754269023025,42.57090865,3554.9,3554.8,0.002]
[1754269023714,42.71170865,3554.9,3554.8,0.002]
[1754269026560,44.40270865,3554.9,3554.8,0.002]
[1754269026733,36.3633352,3554.5,3554.4,0.002]
[1754269026927,36.3633352,3554.5,3553.0,0.002]
[1754269026928,2.241,3554.2,3553.0,0.002]
[1754269027134,33.6908,3553.4,3553.0,0.002]
[1754269027339,3.55,3553.3,3553.0,0.002]
[1754269027563,33.55,3553.1,3553.0,0.002]
[1754269027862,36.50524372,3553.1,3553.0,0.002]
[1754269028160,34.5764,3553.1,3553.0,0.002]
[1754269028387,37.39084372,3553.1,3553.0,0.002]
[1754269028603,33.55,3552.5,3550.5,0.4519]
[1754269028730,1.691,3552.8,3550.8,0.4749]
[1754269028731,43.55,3552.2,3550.8,0.4749]
[1754269029062,33.6908,3552.2,3550.5,0.002]
[1754269029235,34.5764,3552.2,3550.5,0.002]
[1754269029430,37.44464707,3552.2,3550.5,0.002]
[1754269029728,10.88924707,3552.2,3551.6,0.4749]
[1754269029933,11.03004707,3552.2,3551.6,0.4749]
[1754269031164,11.03004707,3552.2,3551.5,0.4499]
[1754269031371,41.91564707,3552.2,3550.8,0.4749]
[1754269031542,41.91564707,3552.2,3550.5,0.002]
[1754269031543,41.91564707,3552.2,3550.7,0.4499]
[1754269032263,41.91564707,3552.2,3550.8,0.4749]
[1754269032431,41.91564707,3552.2,3550.5,0.002]
[1754269032432,37.44464707,3552.2,3550.5,0.002]
[1754269032631,41.03104707,3552.2,3551.4,0.9268]
[1754269033264,41.03104707,3552.2,3551.4,0.002]
[1754269033265,41.91664707,3552.2,3551.4,0.002]
[1754269033774,41.51874707,3552.2,3551.4,0.002]
[1754269034070,41.51874707,3552.2,3551.5,0.4749]
[1754269034071,6.55904707,3552.2,3551.5,0.4749]
[1754269034274,6.55904707,3552.2,3552.1,0.4769]
[1754269034275,4.6128,3552.2,3552.1,0.4769]
[1754269034565,4.6118,3552.2,3552.1,0.9268]
[1754269035468,4.6118,3552.2,3552.1,0.002]
[1754269035655,7.471,3552.2,3552.1,0.002]
[1754269035857,10.04038247,3552.2,3552.1,0.002]
[1754269036045,9.55268247,3552.2,3552.1,0.002]
[1754269036248,9.55368247,3552.2,3552.1,0.002]
[1754269038176,10.04138247,3552.2,3552.1,0.002]
[1754269038549,40.43928247,3552.2,3552.1,0.002]
[1754269038871,40.04138247,3552.2,3552.1,0.002]
[1754269039073,40.43928247,3552.2,3552.1,0.002]
[1754269039682,37.43928247,3552.2,3552.1,0.002]
[1754269040546,32.56938247,3552.2,3552.1,0.002]
[1754269040871,36.55368247,3552.2,3552.1,0.002]
[1754269041382,37.43928247,3552.2,3552.1,0.002]
[1754269041704,37.43928247,3552.2,3552.1,0.9268]
[1754269041705,1.53168247,3552.2,3552.1,0.9268]
[1754269041992,4.472,3552.2,3552.1,0.9268]
[1754269045475,4.472,3552.2,3552.1,0.4499]
[1754269045786,4.6128,3552.2,3552.1,0.4499]
[1754269046754,4.6128,3552.2,3551.7,0.4519]
[1754269046983,4.6128,3552.2,3551.7,0.002]
[1754269046984,4.472,3552.2,3551.7,0.002]
[1754269047276,4.472,3552.2,3552.0,0.4499]
[1754269047477,1.23178247,3552.1,3551.7,0.002]
[1754269047696,4.6118,3552.0,3551.7,0.002]
[1754269048347,4.6118,3552.0,3551.9,0.4769]
[1754269048543,4.6118,3552.0,3551.9,0.9268]
[1754269049191,0.1408,3552.0,3551.9,0.9268]
[1754269049346,4.6118,3552.0,3551.9,0.002]
[1754269049682,5.67256247,3552.0,3551.9,0.002]
[1754269049859,9.22256247,3552.0,3551.9,0.002]
[1754269050059,39.62046247,3552.0,3551.9,0.002]
[1754269050585,39.75773021,3552.0,3551.9,0.002]
[1754269050883,36.36547384,3551.8,3551.7,0.002]
[1754269051187,38.4429,3551.8,3551.7,0.002]
[1754269051363,42.14747384,3551.8,3551.7,0.002]
[1754269051756,39.332,3551.8,3551.7,0.002]
[1754269052159,39.332,3551.8,3551.4,0.002]
[1754269052160,0.55,3551.5,3551.4,0.002]
[1754269052366,41.25861167,3551.5,3551.4,0.002]
[1754269052607,33.9729,3551.5,3551.4,0.002]
[1754269052748,33.6908,3551.5,3551.4,0.002]
[1754269053062,38.652,3551.5,3551.4,0.002]
[1754269053263,39.93689,3551.5,3551.4,0.002]
[1754269053988,40.21899,3551.5,3551.4,0.002]
[1754269054483,43.03470167,3551.5,3551.4,0.002]
[1754269054681,36.64820813,3551.0,3550.9,0.002]
[1754269054888,33.55,3550.6,3549.5,0.002]
[1754269055089,44.9288,3550.6,3549.5,0.002]
[1754269055463,45.8179,3550.6,3549.5,0.002]
[1754269056384,40.55,3550.4,3549.5,0.002]
[1754269056554,33.6908,3549.6,3549.5,0.002]
[1754269056889,11.8843054,3549.6,3549.5,0.002]
[1754269057183,4.68585833,3549.6,3549.5,0.9503]
[1754269057363,9.15685833,3549.6,3549.5,0.9503]
[1754269058750,1.13585833,3549.6,3549.5,0.9503]
[1754269058981,5.60685833,3549.6,3549.5,0.9503]
[1754269059559,1.13585833,3549.6,3549.5,0.9503]
[1754269059760,0.99505833,3549.6,3549.5,3.76759821]
[1754269059961,5.46605833,3549.6,3549.5,0.9503]
[1754269060754,0.99505833,3549.6,3549.5,0.9503]
[1754269060981,0.99505833,3549.6,3549.5,3.76759821]
[1754269061189,5.46605833,3549.6,3549.5,0.9503]
[1754269061376,0.99505833,3549.6,3549.5,3.76759821]
[1754269061690,0.99505833,3549.6,3549.5,4.42911888]
[1754269062163,5.46605833,3549.6,3549.5,0.9503]
[1754269062971,5.46605833,3549.6,3549.5,0.002]
[1754269064797,9.01605833,3549.6,3549.5,0.002]
[1754269066314,9.01605833,3549.6,3549.5,0.4788]
[1754269066514,4.54505833,3549.6,3549.5,0.4788]
[1754269066676,9.01605833,3549.6,3549.5,0.4788]
[1754269067309,9.91766416,3549.6,3549.5,0.4788]
[1754269067607,9.91766416,3549.6,3549.5,0.002]
[1754269067808,5.44666416,3549.6,3549.5,0.002]
[1754269068015,9.91766416,3549.6,3549.5,0.002]
[1754269070034,10.05846416,3549.6,3549.5,0.002]
[1754269070749,0.99505833,3549.6,3549.5,0.9503]
[1754269070885,1.13585833,3549.6,3549.5,0.9503]
[1754269071082,0.16085833,3549.6,3549.5,3.76759821]
[1754269071695,0.16085833,3549.6,3549.5,0.9503]
[1754269071906,0.16085833,3549.6,3549.5,1.60901827]
[1754269072315,0.16085833,3549.6,3549.5,0.9503]
[1754269073725,4.63085833,3549.6,3549.5,0.9503]
[1754269074623,0.16085833,3549.6,3549.5,0.9503]
[1754269077239,0.16085833,3549.6,3549.5,3.76759821]
[1754269077399,0.16085833,3549.6,3549.5,0.9503]
[1754269077720,0.16085833,3549.6,3549.5,4.14456547]
[1754269080141,0.16085833,3549.6,3549.5,1.32726726]
[1754269080422,0.16085833,3549.6,3549.5,0.9503]
[1754269080582,0.16085833,3549.6,3549.5,0.002]
[1754269081937,0.1408,3549.6,3549.5,0.002]
[1754269082988,0.1408,3549.6,3549.5,0.9521]
[1754269083923,0.1408,3549.6,3549.5,0.002]
[1754269084343,0.6124,3549.6,3549.5,0.002]
[1754269084487,1.43614,3549.6,3549.5,0.002]
[1754269085098,0.50204,3549.6,3549.5,0.002]
[1754269085302,0.1408,3549.6,3549.5,0.002]
[1754269086142,3.1408,3549.6,3549.5,0.002]
[1754269087621,4.6098,3549.6,3549.5,0.9521]
[1754269088045,0.1408,3549.6,3549.5,0.9521]
[1754269088189,0.1408,3549.6,3549.5,0.37915754]
[1754269088391,0.1408,3549.6,3549.5,0.002]
[1754269088630,6.768,3550.6,3549.5,3.76939821]
[1754269088835,0.1408,3550.0,3549.6,0.9501]
[1754269089038,0.1408,3550.0,3549.7,0.9501]
[1754269089249,0.1408,3550.0,3549.8,0.39101188]
[1754269089392,0.1408,3550.0,3549.9,2.81698076]
[1754269089591,0.4625,3550.9,3550.1,2.81680916]
[1754269089828,0.4625,3550.9,3549.8,0.39101188]
[1754269089829,0.1408,3550.1,3549.8,0.39101188]
[1754269090093,4.9406,3550.8,3549.8,0.39101188]
[1754269090094,4.469,3550.8,3550.0,2.8169014]
[1754269090322,1.43699,3551.5,3549.9,0.9501]
[1754269090323,4.469,3550.7,3550.1,0.9501]
[1754269090530,1.43699,3551.5,3550.1,0.9501]
[1754269090531,0.1408,3550.2,3550.1,0.9501]
[1754269090839,0.1408,3550.2,3549.8,0.88351188]
[1754269091050,0.1408,3549.9,3549.8,0.4925]
[1754269091345,0.1408,3549.9,3549.7,2.81713137]
[1754269091509,0.55,3551.3,3549.7,2.81713137]
[1754269091510,0.4625,3552.0,3550.9,2.81611604]
[1754269091843,0.4716,3552.1,3549.8,4.469]